Cogmind - Beta 11 @@@ ROGUE MODE // 2022.04.15 @ 17:59:21 Player: Decinym Result: Destroyed by DAS Turret with DAS Cannon Performance ------------- Evolutions (1) 500 Regions Visited (5) 1000 Robots Destroyed (58) 290 Value Destroyed (870) 870 Prototype IDs (2) 40 Alien Tech Used (0) 0 Bonus (-322) -322 TOTAL SCORE: 2378 Bonus ------- Follower Combat Kills 42 Friendly Fire -364 Cogmind --------- Core Integrity 0/400 Matter 258/300 Energy 280/280 System Corruption 1% Temperature Cool (0) Movement Treading (160) Location -9/Exiles Parts ------- > --- POWER (1) -------- Cooled Ion Engine > --- PROPULSION (2) --- Light Treads Light Treads > --- UTILITY (4) ------ Medium Storage Unit Armor Integrity Analyzer > --- WEAPON (2) ------- Rocket Launcher Rocket Launcher > --- INVENTORY (10) --- Improved Deuterium Engine Light Treads Combat Airjet Improved Heat Sink Autogun Plasma Cutter Heavy Explosive Trap Peak State ------------ > --- POWER ------------ Cooled Ion Engine > --- PROPULSION ------- Armored Wheel Armored Wheel > --- UTILITY ---------- Improved Heat Sink Small Storage Unit Structural Scanner Light Armor Plating > --- WEAPON ----------- Improved EM Shotgun Shotgun > --- INVENTORY -------- Ion Engine Light Treads Armored Wheel Light EM Pulse Cannon Shotgun Rocket Launcher Rocket Launcher Heavy Explosive Trap [Rating: 19] Favorites ----------- Power Cooled Ion Engine Engine Cooled Ion Engine Propulsion Light Treads Treads Light Treads Leg Aluminum Leg Wheel Armored Wheel Utility Light Armor Plating Device Improved Heat Sink Storage Small Storage Unit Processor Armor Integrity Analyzer Protection Light Armor Plating Weapon Shotgun Energy Gun Improved EM Shotgun Ballistic Gun Shotgun Launcher Rocket Launcher Build | -11 -10 -10 -9 -9 -9 ------- Run | Scr Mat Min Mat Min Exi Slots Evolved 2 | . . . 2 . . Power . | . . . . . . Propulsion . | . . . . . . Utility 2 | . . . 2 . . Weapon . | . . . . . . Parts Attached 39 | . 3 2 21 9 4 Power 4 | . . . 2 2 . Engine 4 | . . . 2 2 . Core . | . . . . . . Reactor . | . . . . . . Propulsion 12 | . . 2 8 2 . Treads 7 | . . . 5 2 . Leg 2 | . . 2 . . . Wheel 3 | . . . 3 . . Hover . | . . . . . . Flight . | . . . . . . Utility 12 | . 1 . 8 3 . Device 3 | . . . 3 . . Storage 1 | . . . 1 . . Processor 1 | . . . . 1 . Hackware . | . . . . . . Protection 7 | . 1 . 4 2 . Artifact . | . . . . . . Weapon 11 | . 2 . 3 2 4 Energy Gun 2 | . . . 2 . . Energy Cannon . | . . . . . . Ballistic Gun 5 | . 2 . 1 1 1 Ballistic Cannon . | . . . . . . Launcher 4 | . . . . 1 3 Special Weapon . | . . . . . . Impact Weapon . | . . . . . . Slashing Weapon . | . . . . . . Piercing Weapon . | . . . . . . Special Melee Weapon . | . . . . . . Unidentified Prototypes 2 | . . . 2 . . Corrupted Parts 1 | . . . 1 . . System Corruption 1 | . . . 1 . . Parts Lost 6 | . . . . 2 4 Power . | . . . . . . Propulsion 1 | . . . . 1 . Utility 3 | . . . . 1 2 Weapon 2 | . . . . . 2 Highest Loss Streak 2 | . . . . 2 2 To Critical Strikes 1 | . . . . 1 . Average Slot Usage (%) 96 | . 93 100 98 100 79 Engine 12 | . 14 14 11 11 11 Treads 10 | . . . 9 22 22 Leg 10 | . 28 28 1 . . Wheel 3 | . . . 11 . . Device 4 | . . . 14 . . Storage 12 | . 14 14 11 11 11 Processor 3 | . . . . 8 11 Protection 16 | . 8 14 16 24 12 Energy Gun 1 | . . . 5 . . Ballistic Gun 21 | . 27 28 16 21 11 Naked Turns . | . . . . . . Heaviest Build 33 | 10 17 17 31 33 29 Greatest Support 40 | 20 20 20 40 40 40 Greatest Overweight (x) 1 | . . . 1 . . Average Overweight (x) . | . . . . . . Largest Inventory Capacity 10 | . 8 8 10 10 10 Average Capacity 8 | . 8 8 8 10 10 Most Carried 10 | . 8 8 10 10 9 Average Carried 8 | . 7 7 8 9 8 Final Capacity 10 | 8 8 8 10 10 10 Final Carried 10 | 6 8 8 10 9 7 Class Distribution -------------------- 91% | Mutant 8% | Scavenger-Mutant Dominant Class ---------------- Mutant | -10/Materials Mutant | -10/Mines Mutant | -9/Materials Mutant | -9/Mines Mutant | -9/Exiles Resources | -11 -10 -10 -9 -9 -9 ----------- Run | Scr Mat Min Mat Min Exi Matter Collected 1630 | 200 206 129 556 470 69 Remotely . | . . . . . . Salvage Created 1888 | . 236 110 1094 431 17 Parts 110 | . 18 17 62 13 . Haulers Intercepted 5 | . . . 5 . . Recyclers Shooed 3 | . . . . 3 . Parts Field Recycled . | . . . . . . Retrieved Matter . | . . . . . . Parts Self-Destructed . | . . . . . . Prevented . | . . . . . . Kills | -11 -10 -10 -9 -9 -9 ------- Run | Scr Mat Min Mat Min Exi Combat Hostiles Destroyed 42 | . 8 7 14 6 7 Guns 33 | . 8 7 13 4 1 AOE 9 | . . . 1 2 6 Classes Destroyed 11 | . 5 1 3 1 1 Worker 5 | . 1 1 2 1 . Builder 2 | . 2 . . . . Tunneler 1 | . . 1 . . . Hauler 5 | . . . 5 . . Recycler 7 | . 1 . 2 4 . Operator 1 | . . . 1 . . Swarmer 19 | . 6 7 3 3 . Grunt 12 | . 2 . 8 2 . Sentry 3 | . . . 3 . . Zionite 1 | . . . . 1 . Assembled 7 | . . . . . 7 Thug 1 | . . . . 1 . Best Kill Streak 6 | . 4 4 5 4 6 Combat Bots Only 6 | . 4 3 3 3 6 Max Kills in Single Turn 2 | . 1 1 2 2 2 Gunslinging . | . . . . . . Exploded 2 | . . . 1 2 2 Melee . | . . . . . . Uniques/NPCs Destroyed 1 | . . . . 1 . 8R-AWN (-9/Mines) Combat | -11 -10 -10 -9 -9 -9 -------- Run | Scr Mat Min Mat Min Exi Damage Taken 2148 | . 220 93 550 750 535 Core 490 | . 80 10 92 75 233 Absorbed by Shields . | . . . . . . Redirected to Shielding 53 | . . . . 45 8 Core Remaining (%) 82 | 100 . 64 . . . Volleys Fired 141 | . 22 14 54 44 7 Largest 2 | . 2 2 2 2 2 Hottest 68 | . 46 46 68 46 66 Shots Fired 268 | . 44 28 109 79 8 Gun 252 | . 44 28 109 70 1 Cannon . | . . . . . . Launcher 16 | . . . . 9 7 Special . | . . . . . . Kinetic 227 | . 44 28 84 70 1 Thermal . | . . . . . . Explosive 16 | . . . . 9 7 Electromagnetic 25 | . . . 25 . . Robot Hit Streak 16 | . 7 4 16 9 4 Robot Miss Streak 5 | . 3 3 5 3 1 Penetration Max . | . . . . . . Secondary Targets 5 | . 1 1 1 2 . Max Gunslinging Chain 1 | . 1 1 1 1 . Shots Hit Robots 209 | . 36 17 86 65 5 Core Hits 129 | . 17 12 46 39 15 Critical Kills . | . . . . . . Critical Parts Destroyed . | . . . . . . Critical Strikes . | . . . . . . Melee Attacks . | . . . . . . Impact . | . . . . . . Slashing . | . . . . . . Piercing . | . . . . . . Sneak Attacks . | . . . . . . Combat Hostiles . | . . . . . . Follow-up Attacks . | . . . . . . Damage Inflicted 4469 | . 513 273 1469 1645 569 Guns 3133 | . 513 264 1284 1062 10 Cannons . | . . . . . . Explosions 1323 | . . . 185 579 559 Melee . | . . . . . . Ramming 13 | . . 9 . 4 . Kinetic 2728 | . 513 264 879 1062 10 Thermal 185 | . . . 185 . . Explosive 1138 | . . . . 579 559 Electromagnetic 405 | . . . 405 . . Impact . | . . . . . . Slashing . | . . . . . . Piercing . | . . . . . . Highest Corruption 1 | . . . 1 1 1 Average Corruption 1 | . . . 1 1 1 Corruption Purged . | . . . . . . Corruption Blocked . | . . . . . . Effects 8 | . . . 3 4 1 Matter Fused 3 | . . . 1 2 . Heat Flow Errors 1 | . . . . . 1 Energy Discharges 1 | . . . 1 . . Data Loss (minor) 2 | . . . . 2 . Misfires 1 | . . . 1 . . Overload Shots . | . . . . . . Overflow Damage 16 | . . . . 4 12 Projectiles . | . . . . . . Explosions 16 | . . . . 4 12 Melee . | . . . . . . Knockbacks . | . . . . . . Impact . | . . . . . . Kinetic . | . . . . . . Secondary . | . . . . . . Self-Inflicted Damage 111 | . . . 88 23 . Shots 3 | . . . 2 1 . Rammed 1 | . . . . 1 . Targets Rammed 2 | . . 1 . 1 . Kicked 1 | . . 1 . . . Crushed . | . . . . . . Highest Temperature 123 | . 4 . 2 78 123 Average Temperature 38 | . 1 . 2 40 71 Received Heat Transfer 249 | . 24 . 159 66 . Siege Activations . | . . . . . . Robots Corrupted . | . . . . . . Combat Hostiles . | . . . . . . Parts Fried 2 | . . . 2 . . Impact Corruptions . | . . . . . . Robots Melted . | . . . . . . Combat Hostiles . | . . . . . . Parts Melted 1 | . . 1 . . . Heat Transferred 100 | . . . 100 . . Parts Sabotaged . | . . . . . . Parts Stolen . | . . . . . . Parts Stripped . | . . . . . . Power Chain Reactions 3 | . . . 3 . . Missiles Intercepted . | . . . . . . Alert | -11 -10 -10 -9 -9 -9 ------- Run | Scr Mat Min Mat Min Exi Peak Influence 306 | . 241 185 209 306 . Initial 59 | . . 31 25 59 . Average 98 | . 120 63 93 123 . Maximum Alert Level 1 | . 1 . 1 1 . Low Security (%) 86 | . 55 100 99 77 . Level 1 13 | . 44 . . 22 . Level 2 . | . . . . . . Level 3 . | . . . . . . Level 4 . | . . . . . . Level 5 . | . . . . . . High Security . | . . . . . . Max Security . | . . . . . . Squads Dispatched 6 | . 3 . 2 1 . Investigation 2 | . 1 . . 1 . Extermination . | . . . . . . Reinforcement 4 | . 2 . 2 . . Assault . | . . . . . . Garrison . | . . . . . . Intercept . | . . . . . . Searches Triggered . | . . . . . . Construction Impeded . | . . . . . . Haulers Reinforced . | . . . . . . Active Scanning Responses . | . . . . . . Cargo Convoy Interrupts . | . . . . . . Stealth | -11 -10 -10 -9 -9 -9 --------- Run | Scr Mat Min Mat Min Exi Distress Signals 5 | . . . 5 . . Communications Jammed . | . . . . . . Distress Signals . | . . . . . . Times Spotted 72 | . 15 9 28 8 12 Peak Tracking Total 8 | . 5 3 4 3 8 Tactical Retreats 6 | . 1 1 2 1 1 Traps | -11 -10 -10 -9 -9 -9 ------- Run | Scr Mat Min Mat Min Exi Traps Triggered 1 | . 1 . . . . Indirectly . | . . . . . . Trap Hack Attempts . | . . . . . . Triggered . | . . . . . . Disarmed . | . . . . . . Reprogrammed . | . . . . . . Reused . | . . . . . . Traps Extracted . | . . . . . . Installed . | . . . . . . Triggered . | . . . . . . Most Traps Carried 1 | . . 1 1 1 1 Machines | -11 -10 -10 -9 -9 -9 ---------- Run | Scr Mat Min Mat Min Exi Machines Disabled 4 | . . . 1 1 2 Max in Single Turn 1 | . . . 1 1 1 Machines Sabotaged . | . . . . . . Garrisons Compromised . | . . . . . . Overloaded Fab Kills . | . . . . . . Hacking | -11 -10 -10 -9 -9 -9 --------- Run | Scr Mat Min Mat Min Exi Machines Accessed 10 | . 3 . 6 1 . Terminals 8 | . 3 . 5 . . Fabricators . | . . . . . . Repair Stations . | . . . . . . Recycling Units . | . . . . . . Scanalyzers 1 | . . . 1 . . Garrison Access . | . . . . . . Total Hacks 22 | . 4 . 17 1 . Successful 11 | . 1 . 9 1 . Failed 11 | . 3 . 8 . . Catastrophic 3 | . 1 . 2 . . Database Lockouts . | . . . . . . Manual 14 | . 4 . 9 . 1 Terminals 13 | . 4 . 9 . . Fabricators . | . . . . . . Repair Stations . | . . . . . . Recycling Units . | . . . . . . Scanalyzers 8 | . . . 8 . . Garrison Access . | . . . . . . Terminal Hacks 2 | . . . 1 1 . Open Door 1 | . . . . 1 . Unreport Threat 1 | . . . 1 . . Fabricator Hacks . | . . . . . . Repair Station Hacks . | . . . . . . Recycling Unit Hacks . | . . . . . . Scanalyzer 8 | . . . 8 . . Insert Component 4 | . . . 4 . . Analyze 4 | . . . 4 . . Garrison Access Hacks . | . . . . . . Unauthorized Hacks 1 | . 1 . . . . Terminals 1 | . 1 . . . . Assimilate 1 | . 1 . . . . Fabricators . | . . . . . . Repair Stations . | . . . . . . Recycling Units . | . . . . . . Scanalyzers . | . . . . . . Garrison Access . | . . . . . . Data Cores Recovered 1 | . . . 1 . . Used 1 | . . . 1 . . Hacking Detections 8 | . 2 . 6 . . Full Trace Events . | . . . . . . Feedback Events . | . . . . . . Feedback Blocked . | . . . . . . Robot Schematics Acquired . | . . . . . . Robots Built . | . . . . . . Authchips . | . . . . . . Time . | . . . . . . Total Robot Build Rating . | . . . . . . Part Schematics Acquired 4 | . . . 4 . . Parts Built . | . . . . . . Authchips . | . . . . . . Time . | . . . . . . Total Part Build Rating . | . . . . . . Parts Repaired . | . . . . . . Time . | . . . . . . Parts Recycled . | . . . . . . Recycled Matter . | . . . . . . Retrieved Matter . | . . . . . . Retrieved Components . | . . . . . . Parts Scanalyzed 4 | . . . 4 . . Part Schematics Acquired 4 | . . . 4 . . Parts Damaged . | . . . . . . Bothacking | -11 -10 -10 -9 -9 -9 ------------ Run | Scr Mat Min Mat Min Exi Used RIF Installer . | . . . . . . Robots Hacked . | . . . . . . Non-combat . | . . . . . . Combat . | . . . . . . Robot Hacks Applied . | . . . . . . Relay Couplers Released . | . . . . . . Fabnet Peak Effective % . | . . . . . . Robots Rewired . | . . . . . . Allies Hacked . | . . . . . . Hacks Repelled . | . . . . . . Allies | -11 -10 -10 -9 -9 -9 -------- Run | Scr Mat Min Mat Min Exi Total Allies 4 | . 1 1 . 2 . Largest Group 2 | . 1 2 1 2 . Highest-Rated Group 41 | . 10 41 10 41 . Highest-Rated Ally 31 | . 10 31 10 31 . Total Orders 1 | . 1 . . . . STAY 1 | . 1 . . . . Ally Attacks 8 | . . 5 . 3 . Total Damage 130 | . . 87 . 43 . Kills 2 | . . 1 . 1 . Allies Corrupted . | . . . . . . Allies Melted . | . . . . . . Intel | -11 -10 -10 -9 -9 -9 ------- Run | Scr Mat Min Mat Min Exi Robot Analysis Total . | . . . . . . Derelict Logs Recovered 1 | . . 1 . . . Drone Launches . | . . . . . . Drone Recoveries . | . . . . . . Exploration | -11 -10 -10 -9 -9 -9 ------------- Run | Scr Mat Min Mat Min Exi Turns Passed 3311 | . 541 705 967 732 366 Spaces Moved 1996 | 1 337 545 541 360 212 Core . | . . . . . . Treads 781 | . . . 209 360 212 Legs 919 | 1 337 545 36 . . Wheels 296 | . . . 296 . . Hover . | . . . . . . Flight . | . . . . . . Fastest Speed 90 | 120 120 120 90 160 160 Average Speed 132 | 120 120 120 124 160 160 Slowest Speed 240 | 120 120 120 240 160 160 Overloaded Moves . | . . . . . . Propulsion Burnouts . | . . . . . . Robots Hopped . | . . . . . . Cave-ins Triggered . | . . . . . . Exploration Rate (%) 57 | 1 62 97 54 75 53 Regions Visited 5 Branch Regions 3 Pre-discovered Areas . | . . . . . . Known Exits Taken . | . . . . . . Unknown Exits Taken 5 | 1 1 1 1 1 . Scrap Searched 1 | . . 1 . . . Spaces Dug . | . . . . . . Terrain Destroyed 105 | . . . 5 49 51 Melee . | . . . . . . Projectile . | . . . . . . AOE 105 | . . . 5 49 51 Terrain Rammed . | . . . . . . Walls Destroyed . | . . . . . . Machines Disabled . | . . . . . . Actions | -11 -10 -10 -9 -9 -9 --------- Run | Scr Mat Min Mat Min Exi Total 2399 | . 430 569 734 435 231 Wait 170 | . 59 4 81 18 8 Move 1991 | . 336 544 540 359 212 Hop . | . . . . . . Pick Up 22 | . 5 2 14 1 . Fast Attach 15 | . 3 . 9 3 . Attach 11 | . . 2 5 2 2 Detach . | . . . . . . Swap 13 | . . . 7 4 2 Drop 34 | . 5 2 24 3 . Fire 141 | . 22 14 54 44 7 Melee . | . . . . . . Ram . | . . . . . . Kick 1 | . . 1 . . . Crush 1 | . . . . 1 . Escape Stasis . | . . . . . . Rewire . | . . . . . . Trap . | . . . . . . Miscellaneous . | . . . . . . Route ------- -11/Scrapyard -10/Materials (discovered 2 exits: *Mat / [*Min]) -10/Mines (discovered 2 exits: *Mat x2) -9/Materials (discovered 2 exits: *Min x2) -9/Mines (discovered 3 exits: [*Mat x2] / *Exi) -9/Exiles (discovered 1 exit: [*Min]) History --------- Turn | Location | Event 1 | -11/Scrapyard | Discovered new exit (range 0) 1 | -11/Scrapyard | Entered Materials 239 | -10/Materials | Discovered new exit (range 5) 312 | -10/Materials | Build established: Mutant 329 | -10/Materials | Discovered new exit (range 9) 542 | -10/Materials | Entered Mines 542 | -10/Mines | Accompanied by 1 ally 554 | -10/Mines | Received a Rocket Launcher from a helpful Derelict 622 | -10/Mines | Discovered new exit (range 7) 627 | -10/Mines | Received a Mining Laser from a helpful Derelict 980 | -10/Mines | Found a hidden stash of uninstalled traps 986 | -10/Mines | Learned Materials stockpile data 1161 | -10/Mines | Discovered new exit (range 5) 1247 | -10/Mines | Entered Materials 1247 | -9/Materials | Accompanied by 1 ally 1247 | -9/Materials | Evolved 2 slots: Utility x2 1408 | -9/Materials | Discovered new exit (range 5) 1562 | -9/Materials | Discovered new exit (range 10) 2214 | -9/Materials | Entered Mines 2393 | -9/Mines | Met a Derelict shopkeep closing up shop 2436 | -9/Mines | Discovered new exit (range 11) 2559 | -9/Mines | Assembled infested the area 2592 | -9/Mines | Met 8R-AWN 2620 | -9/Mines | Attacked by 8R-AWN 2689 | -9/Mines | Destroyed 8R-AWN 2775 | -9/Mines | Discovered new exit (range 5) 2823 | -9/Mines | Discovered new exit (range 10) 2946 | -9/Mines | Entered Exiles 2946 | -9/Exiles | Attacked by the Exiles 3009 | -9/Exiles | Discovered new exit (range 15) 3297 | -9/Exiles | Core integrity fell below 50% 3311 | -9/Exiles | Core integrity fell below 20% 3312 | -9/Exiles | Destroyed by DAS Turret with DAS Cannon Last Messages --------------- 02975_ as-28742 destroyed. 02975_ as-40122 destroyed. 02977_ The unstable cave ceiling collapses. 02995_ Weapon Shielding destroyed. 02995_ Shotgun destroyed. 02996_ as-41623 destroyed. 02998_ Acquired 7 matter. 03009_ EXIT=FOUND 03025_ The unstable cave ceiling collapses. 03038_ Acquired 3 matter. 03041_ The unstable cave ceiling collapses. 03179_ Connecting with EX-Vault Access... 03179_ Current location identified: Exiles >>\\1234 Not this time, boltface! 03237_ System corrupted: Heat flow error (+143). 03280_ Extracted 59 matter. 03306_ Lgt. Armor Plating destroyed. 03308_ Shotgun destroyed. 03311_ Machine disabled. Map ----- +----------------------------------------------------+ | ????????????????????????????????#" """# | | ????????????????????????????????#" """# | | ????????????????????????????????## """" | | ?????????????????????????????????# """# | | ?????????????????????????????????#" "X" """? | | ?????????????????????????????????#" """ # | | ?????????????????????????????????#" """""""""# | | ????????????????????????????????##" ########### | | ???????????????????????????????##"" #?????????? | | ?????????????????????????????###"" #?????????? | | ????????????????????????????"""""" ##????????? | | ???????????????????????????"" " "" ##???##### | | ??????????????????????????""" " #####"""" | | ???????????????? ???????? " " "" | | ?????????????? ? ??? "" | | ?????????????? ? " | | ????????????? | | ????????????? | | ????????????? | | ????????????""" """""" | | ????????????" ######""" | | ????????????" ""#?????#####""" | | ??????????? " """#??????????##""" | | ?????????? %"""#????????????#"""" | | ?????????? ""#???????????##"" | | ?????????? t @########??####"""" | | ?????????? ## ####""" | | ?????????? % """" | | ??????????? %% | | ??????????? """ | | ???????????? " | | ????????????" " "" " | | ????????????"""" ""## ##""" " " "" | | ?????????????? ""#### ######""" """ | | ????????????? """"##??# #????###""""# | | ??????????????" """#??## ####???###### | | ?????????????? ""##??#! "!#????????? | | ??????????????? """#????#" !#????????? | | ????????????????? ??????#" "#????????? | | ??????????????????" ???????#!!""!"#????????? | | ???????????????????? ????????########????????? | | ?????????????????????????????????????????????????? | | ?????????????????????????????????????????????????? | | ?????????????????????????????????????????????????? | | ?????????????????????????????????????????????????? | | ?????????????????????????????????????????????????? | | ?????????????????????????????????????????????????? | | ?????????????????????????????????????????????????? | | ?????????????????????????????????????????????????? | | ?????????????????????????????????????????????????? | +----------------------------------------------------+ Best States ------------- Heat Dissipation 50 Energy Generation 16 Energy Capacity 290 Matter Stores 300 Matter Capacity 300 Sight Range 16 Terrain Scan Density 10 Armor Coverage 300 Weapon Shielding 33 Evasion (%) 55 Armor Integrity Analysis 30 Recoil Reduction 2 Item Schematics ----------------- Rocket Launcher | -9/Materials | Scanalyzed Lgt. EM Pulse Cannon | -9/Materials | Scanalyzed Arm. Wheel | -9/Materials | Scanalyzed Shotgun | -9/Materials | Scanalyzed Robot Schematics ------------------ None Fabricated ------------ Nothing Alien Tech Used ----------------- None Achievements -------------- None Challenges ------------ None Game ------ Seed RemoteReactiveFilter Manual? 0 Play Time 00:24:14 Cumulative 310.5 hours Start 2022.04.15 @ 11:15:40 End 2022.04.15 @ 17:59:21 Sessions 5 Manual Loads 0 Difficulty Rogue Special Mode None Game No. 344 Rogue 344 Adventurer 0 Explorer 0 Win Type - Total 27 Types 16/3/2/1/2/0/3/0/0 Lore% 85 Gallery% 82 Achievement% 80 Wizard Run 0 Options --------- ASCII 0 Keyboard 0 Movement Arrows Keybinds 0 Fullscreen 2 Font 18/SmallcapsGlow Map View 76x50 Tactical HUD 1 Map Filters NONE Filters NONE Steam 1 RUN: 210c52a2-f41f-4ad8-adf1-29bc197ea8cb